Workbook

Sheet QGTC_1
F2: SISTEMA DE GESTÃO TÉCNICA CENTRALIZADA | T2: Equip.Campo | V2: Cabos | Y2: Obra: "PROJETO DE ARQUITETURA E ESPECIALIDADES DO TOPO NORTE DO ESTÁDIO MUNICIPAL DE LEIRIA PARA CENTRO DE NEGÓCIOS E CENTRO ASSOCIATIVO MUNICIPAL"
F3: LISTA DE PONTOS
F4: Tipo Sinal | O4: Informação / Comando | Y4: Rev.: 02 | Z4: Data: 2025/09/24
B5: Quadro | C5: Inst. | D5: Descrição | F5: ED | G5: Edi | H5: SD | I5: Eap | J5: Eaa | K5: SA | L5: Bus | M5: Protocolo | O5: Alarme | P5: Sinal | Q5: Reg | R5: Ind. | S5: Acum. | Y5: Observações
D7: QGTC_1
D9: Instalações mecânicas PISO 0
B11: QGTC 1 | C11: AVAC 1 | D11: QE.AVAC 1 | V11: 2 | W11: YSLY-JZ 16G1
B12: " | C12: " | D12: Posição interruptor geral | F12: 1 | O12: E | P12: A | S12: N
B13: " | C13: " | D13: Disparo agrupado int. diferenciais | F13: 1 | O13: E | P13: A | S13: N
B14: " | C14: " | D14: Actuação CDI | F14: 1 | O14: E | P14: A | S14: N
B15: " | C15: " | D15: Analisador de rede | L15: 20 | M15: Modbus-Rtu (RS485) | V15: 1 | W15: Datacel 2x2x0,5
B17: QGTC 1 | C17: AVAC 1 | D17: REC 1
B18: " | C18: " | D18: Arranque / Paragem automático | H18: 1 | V18: 1 | W18: YSLY-OZ 2x1
B19: " | C19: " | D19: Comutador Man-0-Automático | F19: 1 | O19: E | P19: A | S19: N
B20: " | C20: " | D20: Disparo de proteções | F20: 1 | O20: E | P20: A | S20: N
B21: " | C21: " | D21: Sinais via protocolo de comunicação | L21: 45 | M21: BACnet/IP | V21: 1 | W21: UTP Cat6
D22: REC 1
D23: - % Ventilador Insuflação;
D24: - % Ventilador Retorno;
D25: - % Registo Modulante;
D26: - % Eficiência da recuperação;
D27: - % Abertura da válvula frio;
D28: - % Abertura da válvula quente;
D29: - Estado dos Registos On-Off;
D30: - Ciclo de Funcionamento;
D31: - Ordem aos Ventiladores 1 (individual);
D32: - Ordem aos Ventiladores 2 (individual);
D33: - Temperatura Exterior;
D34: - Temperatura de Retorno;
D35: - Temperatura pós-recuperação;
D36: - Temperatura de Insuflação;
D37: - Temperatura de água fria ida;
D38: - Temperatura de água fria retorno;
D39: - Temperatura de água quente ida;
D40: - Temperatura de água quente retorno;
D41: - Pressão diferencial de Insuflação;
D42: - Caudal de Insuflação;
D43: - Pressão diferencial de Retorno;
D44: - Caudal de Retorno;
D45: - Falha de caudal;
D46: - Estado do filtro de Ar Novo;
D47: - Estado do filtro de Insuflação;
D48: - Estado do filtro de Retorno;
D49: - Estado do Fim de curso dos registos On-Off;
D50: - Estado de Avaria do Ventilador Insuflação;
D51: - Estado de Avaria do Ventilador Retorno;
B53: QGTC 1 | C53: AVAC 1 | D53: REC 2
B54: " | C54: " | D54: Arranque / Paragem automático | H54: 1 | V54: 1 | W54: YSLY-OZ 2x1
B55: " | C55: " | D55: Comutador Man-0-Automático | F55: 1 | O55: E | P55: A | S55: N
B56: " | C56: " | D56: Disparo de proteções | F56: 1 | O56: E | P56: A | S56: N
B57: " | C57: " | D57: Sinais via protocolo de comunicação | L57: 45 | M57: BACnet/IP | V57: 1 | W57: UTP Cat6
D58: REC 2
D59: - % Ventilador Insuflação;
D60: - % Ventilador Retorno;
D61: - % Registo Modulante;
D62: - % Eficiência da recuperação;
D63: - % Abertura da válvula frio;
D64: - % Abertura da válvula quente;
D65: - Estado dos Registos On-Off;
D66: - Ciclo de Funcionamento;
D67: - Ordem aos Ventiladores 1 (individual);
D68: - Ordem aos Ventiladores 2 (individual);
D69: - Temperatura Exterior;
D70: - Temperatura de Retorno;
D71: - Temperatura pós-recuperação;
D72: - Temperatura de Insuflação;
D73: - Temperatura de água fria ida;
D74: - Temperatura de água fria retorno;
D75: - Temperatura de água quente ida;
D76: - Temperatura de água quente retorno;
D77: - Pressão diferencial de Insuflação;
D78: - Caudal de Insuflação;
D79: - Pressão diferencial de Retorno;
D80: - Caudal de Retorno;
D81: - Falha de caudal;
D82: - Estado do filtro de Ar Novo;
D83: - Estado do filtro de Insuflação;
D84: - Estado do filtro de Retorno;
D85: - Estado do Fim de curso dos registos On-Off;
D86: - Estado de Avaria do Ventilador Insuflação;
D87: - Estado de Avaria do Ventilador Retorno;
B89: QGTC 1 | C89: AVAC 1 | D89: REC 4
B90: " | C90: " | D90: Arranque / Paragem automático | H90: 1 | V90: 1 | W90: YSLY-OZ 2x1
B91: " | C91: " | D91: Comutador Man-0-Automático | F91: 1 | O91: E | P91: A | S91: N
B92: " | C92: " | D92: Disparo de proteções | F92: 1 | O92: E | P92: A | S92: N
B93: " | C93: " | D93: Sinais via protocolo de comunicação | L93: 45 | M93: BACnet/IP | V93: 1 | W93: UTP Cat6
D94: REC 4
D95: - % Ventilador Insuflação;
D96: - % Ventilador Retorno;
D97: - % Registo Modulante;
D98: - % Eficiência da recuperação;
D99: - % Abertura da válvula frio;
D100: - % Abertura da válvula quente;
D101: - Estado dos Registos On-Off;
D102: - Ciclo de Funcionamento;
D103: - Ordem aos Ventiladores 1 (individual);
D104: - Ordem aos Ventiladores 2 (individual);
D105: - Temperatura Exterior;
D106: - Temperatura de Retorno;
D107: - Temperatura pós-recuperação;
D108: - Temperatura de Insuflação;
D109: - Temperatura de água fria ida;
D110: - Temperatura de água fria retorno;
D111: - Temperatura de água quente ida;
D112: - Temperatura de água quente retorno;
D113: - Pressão diferencial de Insuflação;
D114: - Caudal de Insuflação;
D115: - Pressão diferencial de Retorno;
D116: - Caudal de Retorno;
D117: - Falha de caudal;
D118: - Estado do filtro de Ar Novo;
D119: - Estado do filtro de Insuflação;
D120: - Estado do filtro de Retorno;
D121: - Estado do Fim de curso dos registos On-Off;
D122: - Estado de Avaria do Ventilador Insuflação;
D123: - Estado de Avaria do Ventilador Retorno;
B125: QGTC 1 | C125: AVAC 1 | D125: REC 5
B126: " | C126: " | D126: Arranque / Paragem automático | H126: 1 | V126: 1 | W126: YSLY-OZ 2x1
B127: " | C127: " | D127: Comutador Man-0-Automático | F127: 1 | O127: E | P127: A | S127: N
B128: " | C128: " | D128: Avaria | F128: 1 | O128: E | P128: A | S128: N
B129: " | C129: " | D129: Sinais via protocolo de comunicação | L129: 45 | M129: BACnet/IP | V129: 1 | W129: UTP Cat6
D130: REC 5
D131: - % Ventilador Insuflação;
D132: - % Ventilador Retorno;
D133: - % Registo Modulante;
D134: - % Eficiência da recuperação;
D135: - % Abertura da válvula frio;
D136: - % Abertura da válvula quente;
D137: - Estado dos Registos On-Off;
D138: - Ciclo de Funcionamento;
D139: - Ordem aos Ventiladores 1 (individual);
D140: - Ordem aos Ventiladores 2 (individual);
D141: - Temperatura Exterior;
D142: - Temperatura de Retorno;
D143: - Temperatura pós-recuperação;
D144: - Temperatura de Insuflação;
D145: - Temperatura de água fria ida;
D146: - Temperatura de água fria retorno;
D147: - Temperatura de água quente ida;
D148: - Temperatura de água quente retorno;
D149: - Pressão diferencial de Insuflação;
D150: - Caudal de Insuflação;
D151: - Pressão diferencial de Retorno;
D152: - Caudal de Retorno;
D153: - Falha de caudal;
D154: - Estado do filtro de Ar Novo;
D155: - Estado do filtro de Insuflação;
D156: - Estado do filtro de Retorno;
D157: - Estado do Fim de curso dos registos On-Off;
D158: - Estado de Avaria do Ventilador Insuflação;
D159: - Estado de Avaria do Ventilador Retorno;
B161: QGTC 1 | C161: AVAC 1 | D161: REC 19
B162: " | C162: " | D162: Arranque / Paragem automático | H162: 1 | V162: 1 | W162: YSLY-OZ 2x1
B163: " | C163: " | D163: Comutador Man-0-Automático | F163: 1 | O163: E | P163: A | S163: N
B164: " | C164: " | D164: Avaria | F164: 1 | O164: E | P164: A | S164: N
B165: " | C165: " | D165: Sinais via protocolo de comunicação | L165: 45 | M165: BACnet/IP | V165: 1 | W165: UTP Cat6
D166: REC 19
D167: - % Ventilador Insuflação;
D168: - % Ventilador Retorno;
D169: - % Registo Modulante;
D170: - % Eficiência da recuperação;
D171: - % Abertura da válvula frio;
D172: - % Abertura da válvula quente;
D173: - Estado dos Registos On-Off;
D174: - Ciclo de Funcionamento;
D175: - Ordem aos Ventiladores 1 (individual);
D176: - Ordem aos Ventiladores 2 (individual);
D177: - Temperatura Exterior;
D178: - Temperatura de Retorno;
D179: - Temperatura pós-recuperação;
D180: - Temperatura de Insuflação;
D181: - Temperatura de água fria ida;
D182: - Temperatura de água fria retorno;
D183: - Temperatura de água quente ida;
D184: - Temperatura de água quente retorno;
D185: - Pressão diferencial de Insuflação;
D186: - Caudal de Insuflação;
D187: - Pressão diferencial de Retorno;
D188: - Caudal de Retorno;
D189: - Falha de caudal;
D190: - Estado do filtro de Ar Novo;
D191: - Estado do filtro de Insuflação;
D192: - Estado do filtro de Retorno;
D193: - Estado do Fim de curso dos registos On-Off;
D194: - Estado de Avaria do Ventilador Insuflação;
D195: - Estado de Avaria do Ventilador Retorno;
B197: QGTC 1 | C197: AVAC 1 | D197: UTA 1 (Auditório)
B198: " | C198: " | D198: Arranque / Paragem automático | H198: 1 | V198: 1 | W198: YSLY-OZ 2x1
B199: " | C199: " | D199: Comutador Man-0-Automático | F199: 1 | O199: E | P199: A | S199: N
B200: " | C200: " | D200: Avaria | F200: 1 | O200: E | P200: A | S200: N
B201: " | C201: " | D201: Sinais via protocolo de comunicação | L201: 45 | M201: BACnet/IP | V201: 1 | W201: UTP Cat6
D202: UTA 1
D203: - % Ventilador Insuflação;
D204: - % Ventilador Retorno;
D205: - % Registo Modulante;
D206: - % Eficiência da recuperação;
D207: - % Abertura da válvula frio;
D208: - % Abertura da válvula quente;
D209: - Estado dos Registos On-Off;
D210: - Ciclo de Funcionamento;
... 101 more rows

Sheet QGTC_2
F2: SISTEMA DE GESTÃO TÉCNICA CENTRALIZADA | T2: Equip.Campo | V2: Cabos | Y2: Obra: "PROJETO DE ARQUITETURA E ESPECIALIDADES DO TOPO NORTE DO ESTÁDIO MUNICIPAL DE LEIRIA PARA CENTRO DE NEGÓCIOS E CENTRO ASSOCIATIVO MUNICIPAL"
F3: LISTA DE PONTOS
F4: Tipo Sinal | O4: Informação / Comando | Y4: Rev.: 02 | Z4: Data: 2025/09/24
B5: Quadro | C5: Inst. | D5: Descrição | F5: ED | G5: Edi | H5: SD | I5: Eap | J5: Eaa | K5: SA | L5: Bus | M5: Protocolo | O5: Alarme | P5: Sinal | Q5: Reg | R5: Ind. | S5: Acum. | Y5: Observações
D7: QGTC_2
D9: Instalações mecânicas PISO 1
B11: QGTC 2 | C11: AVAC 2 | D11: QE.AVAC 2 | V11: 1 | W11: YSLY-JZ 25G1
B12: " | C12: " | D12: Posição interruptor geral | F12: 1 | O12: E | P12: A | S12: N
B13: " | C13: " | D13: Disparo agrupado int. diferenciais | F13: 1 | O13: E | P13: A | S13: N
B14: " | C14: " | D14: Actuação CDI | F14: 1 | O14: E | P14: A | S14: N
B15: " | C15: " | D15: Analisador de rede | L15: 20 | M15: Modbus-Rtu (RS485) | V15: 1 | W15: Datacel 2x2x0,5
B17: QGTC 2 | C17: AVAC 2 | D17: REC 6
B18: " | C18: " | D18: Arranque / Paragem automático | H18: 1 | V18: 1 | W18: YSLY-OZ 2x1
B19: " | C19: " | D19: Comutador Man-0-Automático | F19: 1 | O19: E | P19: A | S19: N
B20: " | C20: " | D20: Disparo de proteções | F20: 1 | O20: E | P20: A | S20: N
B21: " | C21: " | D21: Sinais via protocolo de comunicação | L21: 45 | M21: BACnet/IP | V21: 1 | W21: UTP Cat6
D22: REC 6
D23: - % Ventilador Insuflação;
D24: - % Ventilador Retorno;
D25: - % Registo Modulante;
D26: - % Eficiência da recuperação;
D27: - % Abertura da válvula frio;
D28: - % Abertura da válvula quente;
D29: - Estado dos Registos On-Off;
D30: - Ciclo de Funcionamento;
D31: - Ordem aos Ventiladores 1 (individual);
D32: - Ordem aos Ventiladores 2 (individual);
D33: - Temperatura Exterior;
D34: - Temperatura de Retorno;
D35: - Temperatura pós-recuperação;
D36: - Temperatura de Insuflação;
D37: - Temperatura de água fria ida;
D38: - Temperatura de água fria retorno;
D39: - Temperatura de água quente ida;
D40: - Temperatura de água quente retorno;
D41: - Pressão diferencial de Insuflação;
D42: - Caudal de Insuflação;
D43: - Pressão diferencial de Retorno;
D44: - Caudal de Retorno;
D45: - Falha de caudal;
D46: - Estado do filtro de Ar Novo;
D47: - Estado do filtro de Insuflação;
D48: - Estado do filtro de Retorno;
D49: - Estado do Fim de curso dos registos On-Off;
D50: - Estado de Avaria do Ventilador Insuflação;
D51: - Estado de Avaria do Ventilador Retorno;
B53: QGTC 2 | C53: AVAC 2 | D53: REC 7
B54: " | C54: " | D54: Arranque / Paragem automático | H54: 1 | V54: 1 | W54: YSLY-OZ 2x1
B55: " | C55: " | D55: Comutador Man-0-Automático | F55: 1 | O55: E | P55: A | S55: N
B56: " | C56: " | D56: Disparo de proteções | F56: 1 | O56: E | P56: A | S56: N
B57: " | C57: " | D57: Sinais via protocolo de comunicação | L57: 45 | M57: BACnet/IP | V57: 1 | W57: UTP Cat6
D58: REC 7
D59: - % Ventilador Insuflação;
D60: - % Ventilador Retorno;
D61: - % Registo Modulante;
D62: - % Eficiência da recuperação;
D63: - % Abertura da válvula frio;
D64: - % Abertura da válvula quente;
D65: - Estado dos Registos On-Off;
D66: - Ciclo de Funcionamento;
D67: - Ordem aos Ventiladores 1 (individual);
D68: - Ordem aos Ventiladores 2 (individual);
D69: - Temperatura Exterior;
D70: - Temperatura de Retorno;
D71: - Temperatura pós-recuperação;
D72: - Temperatura de Insuflação;
D73: - Temperatura de água fria ida;
D74: - Temperatura de água fria retorno;
D75: - Temperatura de água quente ida;
D76: - Temperatura de água quente retorno;
D77: - Pressão diferencial de Insuflação;
D78: - Caudal de Insuflação;
D79: - Pressão diferencial de Retorno;
D80: - Caudal de Retorno;
D81: - Falha de caudal;
D82: - Estado do filtro de Ar Novo;
D83: - Estado do filtro de Insuflação;
D84: - Estado do filtro de Retorno;
D85: - Estado do Fim de curso dos registos On-Off;
D86: - Estado de Avaria do Ventilador Insuflação;
D87: - Estado de Avaria do Ventilador Retorno;
B89: QGTC 2 | C89: AVAC 2 | D89: REC 8
B90: " | C90: " | D90: Arranque / Paragem automático | H90: 1 | V90: 1 | W90: YSLY-OZ 2x1
B91: " | C91: " | D91: Comutador Man-0-Automático | F91: 1 | O91: E | P91: A | S91: N
B92: " | C92: " | D92: Disparo de proteções | F92: 1 | O92: E | P92: A | S92: N
B93: " | C93: " | D93: Sinais via protocolo de comunicação | L93: 45 | M93: BACnet/IP | V93: 1 | W93: UTP Cat6
D94: REC 8
D95: - % Ventilador Insuflação;
D96: - % Ventilador Retorno;
D97: - % Registo Modulante;
D98: - % Eficiência da recuperação;
D99: - % Abertura da válvula frio;
D100: - % Abertura da válvula quente;
D101: - Estado dos Registos On-Off;
D102: - Ciclo de Funcionamento;
D103: - Ordem aos Ventiladores 1 (individual);
D104: - Ordem aos Ventiladores 2 (individual);
D105: - Temperatura Exterior;
D106: - Temperatura de Retorno;
D107: - Temperatura pós-recuperação;
D108: - Temperatura de Insuflação;
D109: - Temperatura de água fria ida;
D110: - Temperatura de água fria retorno;
D111: - Temperatura de água quente ida;
D112: - Temperatura de água quente retorno;
D113: - Pressão diferencial de Insuflação;
D114: - Caudal de Insuflação;
D115: - Pressão diferencial de Retorno;
D116: - Caudal de Retorno;
D117: - Falha de caudal;
D118: - Estado do filtro de Ar Novo;
D119: - Estado do filtro de Insuflação;
D120: - Estado do filtro de Retorno;
D121: - Estado do Fim de curso dos registos On-Off;
D122: - Estado de Avaria do Ventilador Insuflação;
D123: - Estado de Avaria do Ventilador Retorno;
B125: QGTC 2 | C125: AVAC 2 | D125: VC'S (1.87 a 1.94) (x8)
D126: Sinais via protocolo de comunicação | L126: =15*8 -> 120 | M126: Modbus-Rtu | V126: 1 | W126: Datacel 2x2x0,5
D127: VC'S
D128: Comando 0..10Vdc (motor EC) | P128: L/D | S128: H
D129: Válvulas três vias regulação - água fria | Q129: % | R129: % | T129: 1
D130: Válvulas três vias regulação - água quente | Q130: % | R130: % | T130: 1
D131: Temperatura ar ambiente | Q131: ºC | R131: ºC | T131: 1
D132: - Falha de caudal;
D133: Unidade operação local
B135: QGTC 2 | C135: AVAC 2 | D135: VEX 1
B136: " | C136: " | D136: Arranque / Paragem automático | H136: 1 | V136: 1 | W136: YSLY-OZ 2x1
B137: " | C137: " | D137: Comutador Man-0-Automático | F137: 1 | O137: E | P137: A | S137: N
B138: " | C138: " | D138: Estado funcionamento (pressostato) | F138: 1 | O138: F | P138: A | S138: N | T138: 1 | U138: DWG930.80 | V138: 1 | W138: YSLY-OZ 2x1
B139: " | C139: " | D139: Avaria | F139: 1 | O139: E | P139: E | S139: N
B141: QGTC 2 | C141: AVAC 2 | D141: Central Registos Corta-Fogo
D142: Sinais via protocolo de comunicação | L142: 50 | M142: BACnet/IP | V142: 1 | W142: UTP cat6
D144: Contagem de energia térmica
B145: QGTC 2 | C145: AVAC 2 | D145: Contagem de energia térmica - AQ (Ala esquerda) | L145: 10 | M145: M-Bus | T145: 1 | U145: CET-AQ-DN65F | V145: 1 | W145: Datacel 2x2x0,5 | X145: 1
B146: " | C146: " | D146: Contagem de energia térmica - AF (Ala esquerda) | L146: 10 | M146: M-Bus | T146: 1 | U146: CET-AF-DN65F | V146: 1 | W146: Datacel 2x2x0,5 | X146: 1
B147: " | C147: " | D147: Contagem de energia térmica - AF (Ala central) | L147: 10 | M147: M-Bus | T147: 1 | U147: CET-AF-DN125F | V147: 1 | W147: Datacel 2x2x0,5 | X147: 1
B148: " | C148: " | D148: Contagem de energia térmica - AQ (Ala central) | L148: 10 | M148: M-Bus | T148: 1 | U148: CET-AQ-DN125F | V148: 1 | W148: Datacel 2x2x0,5 | X148: 1
B149: " | C149: " | D149: Contagem de energia térmica - AF (Ala central) | L149: 10 | M149: M-Bus | T149: 1 | U149: CET-AF-DN80F | V149: 1 | W149: Datacel 2x2x0,5 | X149: 1
B150: " | C150: " | D150: Contagem de energia térmica - AQ (Ala central) | L150: 10 | M150: M-Bus | T150: 1 | U150: CET-AQ-DN80F | V150: 1 | W150: Datacel 2x2x0,5 | X150: 1
B151: " | C151: " | D151: Contagem de energia térmica - AF (Ala direita) | L151: 10 | M151: M-Bus | T151: 1 | U151: CET-AF-DN80F | V151: 1 | W151: Datacel 2x2x0,5 | X151: 1
B152: " | C152: " | D152: Contagem de energia térmica - AQ (Ala direita) | L152: 10 | M152: M-Bus | T152: 1 | U152: CET-AQ-DN80F | V152: 1 | W152: Datacel 2x2x0,5 | X152: 1
D154: Instalações elétricas
B155: QGTC 2 | C155: QE | D155: (C0) QP-SC1 Piso 1
B156: " | C156: " | D156: Posição interruptor geral | F156: 1 | O156: E | P156: A | S156: N | V156: 1 | W156: YSLY-JZ 25G1
B157: " | C157: " | D157: Posição Disjuntores Quadros Parciais | F157: 15 | O157: E | P157: A | S157: N
B158: " | C158: " | D158: Disparo disjuntor alimentação - (C0) QP-SC1 | F158: 1 | O158: F | P158: A | S158: N
B159: " | C159: " | D159: Analisador de rede (C0) QP-SC1 | L159: 20 | M159: Modbus-Rtu | V159: 1 | W159: Datacel 2x2x0,5
B160: " | C160: " | D160: Integração iluminação DALI | L160: =9*128 -> 1152 | M160: DALI | V160: 18 | W160: DALI 1x2x2
B161: " | C161: " | D161: Equipamentos KNX | L161: =64*9 -> 576 | M161: KNX | V161: 9 | W161: EIB 2x2x0,5
D164: Pontos Controlo | F164: =SUM(F5:F163) -> 29 | G164: 0 | H164: 4 | I164: 0 | J164: 0 | K164: 0 | L164: 2153
D165: Reserva (+10%) | F165: =CEILING(F164*0.1,1) -> 3 | G165: 0 | H165: 1 | I165: 0 | J165: 0 | K165: 0 | L165: 216
D166: TOTAL PONTOS CONTROLO | F166: =F164+F165 -> 32 | G166: 0 | H166: 5 | I166: 0 | J166: 0 | K166: 0 | L166: 2369

Sheet QGTC_3
F2: SISTEMA DE GESTÃO TÉCNICA CENTRALIZADA | T2: Equip.Campo | V2: Cabos | Y2: Obra: "PROJETO DE ARQUITETURA E ESPECIALIDADES DO TOPO NORTE DO ESTÁDIO MUNICIPAL DE LEIRIA PARA CENTRO DE NEGÓCIOS E CENTRO ASSOCIATIVO MUNICIPAL"
F3: LISTA DE PONTOS
F4: Tipo Sinal | O4: Informação / Comando | Y4: Rev.: 02 | Z4: Data: 2025/09/24
B5: Quadro | C5: Inst. | D5: Descrição | F5: ED | G5: Edi | H5: SD | I5: Eap | J5: Eaa | K5: SA | L5: Bus | M5: Protocolo | O5: Alarme | P5: Sinal | Q5: Reg | R5: Ind. | S5: Acum. | Y5: Observações
D7: QGTC_3
D9: Instalações mecânicas PISO 2
B11: QGTC 3 | C11: AVAC 3 | D11: QE.AVAC 3 | V11: 1 | W11: YSLY-JZ 16G1
B12: " | C12: " | D12: Posição interruptor geral | F12: 1 | O12: E | P12: A | S12: N
B13: " | C13: " | D13: Disparo agrupado int. diferenciais | F13: 1 | O13: E | P13: A | S13: N
B14: " | C14: " | D14: Actuação CDI | F14: 1 | O14: E | P14: A | S14: N
B15: " | C15: " | D15: Analisador de rede | L15: 20 | M15: Modbus-Rtu (RS485) | V15: 1 | W15: Datacel 2x2x0,5
B17: QGTC 3 | C17: AVAC 3 | D17: REC 9
B18: " | C18: " | D18: Arranque / Paragem automático | H18: 1 | V18: 1 | W18: YSLY-OZ 2x1
B19: " | C19: " | D19: Comutador Man-0-Automático | F19: 1 | O19: E | P19: A | S19: N
B20: " | C20: " | D20: Avaria | F20: 1 | O20: E | P20: A | S20: N
B21: " | C21: " | D21: Sinais via protocolo de comunicação | L21: 45 | M21: BACnet/IP | V21: 1 | W21: Datacel 2x2x0,5
D22: REC 9
D23: - % Ventilador Insuflação;
D24: - % Ventilador Retorno;
D25: - % Registo Modulante;
D26: - % Eficiência da recuperação;
D27: - % Abertura da válvula frio;
D28: - % Abertura da válvula quente;
D29: - Estado dos Registos On-Off;
D30: - Ciclo de Funcionamento;
D31: - Ordem aos Ventiladores 1 (individual);
D32: - Ordem aos Ventiladores 2 (individual);
D33: - Temperatura Exterior;
D34: - Temperatura de Retorno;
D35: - Temperatura pós-recuperação;
D36: - Temperatura de Insuflação;
D37: - Temperatura de água fria ida;
D38: - Temperatura de água fria retorno;
D39: - Temperatura de água quente ida;
D40: - Temperatura de água quente retorno;
D41: - Pressão diferencial de Insuflação;
D42: - Caudal de Insuflação;
D43: - Pressão diferencial de Retorno;
D44: - Caudal de Retorno;
D45: - Falha de caudal;
D46: - Estado do filtro de Ar Novo;
D47: - Estado do filtro de Insuflação;
D48: - Estado do filtro de Retorno;
D49: - Estado do Fim de curso dos registos On-Off;
D50: - Estado de Avaria do Ventilador Insuflação;
D51: - Estado de Avaria do Ventilador Retorno;
AA52: FALTA VEX 8
B53: QGTC 3 | C53: AVAC 3 | D53: VEX 9
B54: " | C54: " | D54: Arranque / Paragem automático | H54: 1 | V54: 1 | W54: YSLY-OZ 2x1
B55: " | C55: " | D55: Comutador Man-0-Automático | F55: 1 | O55: E | P55: A | S55: N
B56: " | C56: " | D56: Estado funcionamento (pressostato) | F56: 1 | O56: F | P56: A | S56: N | T56: 1 | U56: DWG930.80 | V56: 1 | W56: YSLY-OZ 2x1
B57: " | C57: " | D57: Avaria | F57: 1 | O57: E | P57: E | S57: N
B59: QGTC 3 | C59: AVAC 3 | D59: BC. AQS 3
B60: " | C60: " | D60: Arranque / Paragem automático | H60: 1 | V60: 1 | W60: YSLY-OZ 2x1
B61: " | C61: " | D61: Comutador Man-0-Automático | F61: 1 | O61: E | P61: A | S61: N
B62: " | C62: " | D62: Avaria | F62: 1 | O62: E | P62: A | S62: N
B63: " | C63: " | D63: Temperatura depósito - nível alto | I63: 1 | T63: 1 | U63: EGT348F102 | W63: Olflex 135CH 2x1
B64: " | C64: " | D64: Temperatura depósito - nível baixo | I64: 1 | T64: 1 | U64: EGT348F102 | W64: Olflex 135CH 2x1
B65: " | C65: " | D65: Resistência eléctrica - comando | H65: 1 | W65: Olflex 130H 2x1
B67: QGTC 3 | C67: AVAC 3 | D67: BC. AQS 4
B68: " | C68: " | D68: Arranque / Paragem automático | H68: 1 | V68: 1 | W68: YSLY-OZ 2x1
B69: " | C69: " | D69: Comutador Man-0-Automático | F69: 1 | O69: E | P69: A | S69: N
B70: " | C70: " | D70: Avaria | F70: 1 | O70: E | P70: A | S70: N
B71: " | C71: " | D71: Temperatura depósito - nível alto | I71: 1 | T71: 1 | U71: EGT348F102 | W71: Olflex 135CH 2x1
B72: " | C72: " | D72: Temperatura depósito - nível baixo | I72: 1 | T72: 1 | U72: EGT348F102 | W72: Olflex 135CH 2x1
B73: " | C73: " | D73: Resistência eléctrica - comando | H73: 1 | W73: Olflex 130H 2x1
B75: QGTC 3 | C75: AVAC 3 | D75: Central Registos Corta-Fogo
D76: Sinais via protocolo de comunicação | L76: 50 | M76: Interface de comunicação (BACNET IP) | V76: 1 | W76: UTP cat6
D78: Contagem de energia térmica
B79: QGTC 3 | C79: AVAC 3 | D79: Contagem de energia térmica - AQ (Ala esquerda) | L79: 10 | M79: M-Bus | T79: 1 | U79: CET-AQ-DN80F | V79: 1 | W79: Datacel 2x2x0,5 | X79: 1
B80: " | C80: " | D80: Contagem de energia térmica - AF (Ala esquerda) | L80: 10 | M80: M-Bus | T80: 1 | U80: CET-AF-DN80F | V80: 1 | W80: Datacel 2x2x0,5 | X80: 1
B81: " | C81: " | D81: Contagem de energia térmica - AF (Ala central) | L81: 10 | M81: M-Bus | T81: 1 | U81: CET-AF-DN125F | V81: 1 | W81: Datacel 2x2x0,5 | X81: 1
B82: " | C82: " | D82: Contagem de energia térmica - AQ (Ala central) | L82: 10 | M82: M-Bus | T82: 1 | U82: CET-AQ-DN125F | V82: 1 | W82: Datacel 2x2x0,5 | X82: 1
B83: " | C83: " | D83: Contagem de energia térmica - AF (Ala direita) | L83: 10 | M83: M-Bus | T83: 1 | U83: CET-AF-DN100F | V83: 1 | W83: Datacel 2x2x0,5 | X83: 1
B84: " | C84: " | D84: Contagem de energia térmica - AQ (Ala direita) | L84: 10 | M84: M-Bus | T84: 1 | U84: CET-AQ-DN100F | V84: 1 | W84: Datacel 2x2x0,5 | X84: 1
D86: Instalações elétricas
B87: QGTC 3 | C87: QE | D87: (C0) QP-SC2 Piso 2
B88: " | C88: " | D88: Posição interruptor geral | F88: 1 | O88: E | P88: A | S88: N | V88: 1 | W88: YSLY-JZ 25G1
B89: " | C89: " | D89: Posição Disjuntores Quadros Parciais | F89: 15 | O89: E | P89: A | S89: N
B90: " | C90: " | D90: Disparo disjuntor alimentação - (C0) QP-SC2 | F90: 1 | O90: F | P90: A | S90: N
B91: " | C91: " | D91: Analisador de rede (C0) QP-SC2 | L91: 20 | M91: Modbus-Rtu | V91: 1 | W91: Datacel 2x2x0,5
B92: " | C92: " | D92: Integração iluminação DALI | L92: =8*128 -> 1024 | M92: DALI | V92: 16 | W92: DALI 1x2x2
B93: " | C93: " | D93: Equipamentos KNX | L93: =64*8 -> 512 | M93: KNX | V93: 8 | W93: EIB 2x2x0,5
D95: Pontos Controlo | F95: =SUM(F5:F94) -> 29 | G95: 0 | H95: 6 | I95: 4 | J95: 0 | K95: 0 | L95: 1731
D96: Reserva (+10%) | F96: =CEILING(F95*0.1,1) -> 3 | G96: 0 | H96: 1 | I96: 1 | J96: 0 | K96: 0 | L96: 174
D97: TOTAL PONTOS CONTROLO | F97: =F95+F96 -> 32 | G97: 0 | H97: 7 | I97: 5 | J97: 0 | K97: 0 | L97: 1905

Sheet QGTC_4
F2: SISTEMA DE GESTÃO TÉCNICA CENTRALIZADA | T2: Equip.Campo | V2: Cabos | Y2: Obra: "PROJETO DE ARQUITETURA E ESPECIALIDADES DO TOPO NORTE DO ESTÁDIO MUNICIPAL DE LEIRIA PARA CENTRO DE NEGÓCIOS E CENTRO ASSOCIATIVO MUNICIPAL"
F3: LISTA DE PONTOS
F4: Tipo Sinal | O4: Informação / Comando | Y4: Rev.: 02 | Z4: Data: 2025/09/24
B5: Quadro | C5: Inst. | D5: Descrição | F5: ED | G5: Edi | H5: SD | I5: Eap | J5: Eaa | K5: SA | L5: Bus | M5: Protocolo | O5: Alarme | P5: Sinal | Q5: Reg | R5: Ind. | S5: Acum. | Y5: Observações
D7: QGTC_4
D9: Instalações mecânicas PISO 3
B11: QGTC 4 | C11: AVAC 4 | D11: QE.AVAC 4 | V11: 1 | W11: YSLY-JZ 16G1
B12: " | C12: " | D12: Posição interruptor geral | F12: 1 | O12: E | P12: A | S12: N
B13: " | C13: " | D13: Disparo agrupado int. diferenciais | F13: 1 | O13: E | P13: A | S13: N
B14: " | C14: " | D14: Actuação CDI | F14: 1 | O14: E | P14: A | S14: N
B15: " | C15: " | D15: Analisador de rede | L15: 20 | M15: Modbus-Rtu (RS485) | V15: 1 | W15: Datacel 2x2x0,5
B17: QGTC 4 | C17: AVAC 4 | D17: REC 10
B18: " | C18: " | D18: Arranque / Paragem automático | H18: 1 | V18: 1 | W18: YSLY-OZ 2x1
B19: " | C19: " | D19: Comutador Man-0-Automático | F19: 1 | O19: E | P19: A | S19: N
B20: " | C20: " | D20: Disparo de proteções | F20: 1 | O20: E | P20: A | S20: N
B21: " | C21: " | D21: Sinais via protocolo de comunicação | L21: 45 | M21: BACnet/IP | V21: 1 | W21: UTP Cat6
D22: REC 10
D23: - % Ventilador Insuflação;
D24: - % Ventilador Retorno;
D25: - % Registo Modulante;
D26: - % Eficiência da recuperação;
D27: - % Abertura da válvula frio;
D28: - % Abertura da válvula quente;
D29: - Estado dos Registos On-Off;
D30: - Ciclo de Funcionamento;
D31: - Ordem aos Ventiladores 1 (individual);
D32: - Ordem aos Ventiladores 2 (individual);
D33: - Temperatura Exterior;
D34: - Temperatura de Retorno;
D35: - Temperatura pós-recuperação;
D36: - Temperatura de Insuflação;
D37: - Temperatura de água fria ida;
D38: - Temperatura de água fria retorno;
D39: - Temperatura de água quente ida;
D40: - Temperatura de água quente retorno;
D41: - Pressão diferencial de Insuflação;
D42: - Caudal de Insuflação;
D43: - Pressão diferencial de Retorno;
D44: - Caudal de Retorno;
D45: - Falha de caudal;
D46: - Estado do filtro de Ar Novo;
D47: - Estado do filtro de Insuflação;
D48: - Estado do filtro de Retorno;
D49: - Estado do Fim de curso dos registos On-Off;
D50: - Estado de Avaria do Ventilador Insuflação;
D51: - Estado de Avaria do Ventilador Retorno;
B53: QGTC 4 | C53: AVAC 4 | D53: REC 11
B54: " | C54: " | D54: Arranque / Paragem automático | H54: 1 | V54: 1 | W54: YSLY-OZ 2x1
B55: " | C55: " | D55: Comutador Man-0-Automático | F55: 1 | O55: E | P55: A | S55: N
B56: " | C56: " | D56: Disparo de proteções | F56: 1 | O56: E | P56: A | S56: N
B57: " | C57: " | D57: Sinais via protocolo de comunicação | L57: 45 | M57: BACnet/IP | V57: 1 | W57: UTP Cat6
D58: REC 11
D59: - % Ventilador Insuflação;
D60: - % Ventilador Retorno;
D61: - % Registo Modulante;
D62: - % Eficiência da recuperação;
D63: - % Abertura da válvula frio;
D64: - % Abertura da válvula quente;
D65: - Estado dos Registos On-Off;
D66: - Ciclo de Funcionamento;
D67: - Ordem aos Ventiladores 1 (individual);
D68: - Ordem aos Ventiladores 2 (individual);
D69: - Temperatura Exterior;
D70: - Temperatura de Retorno;
D71: - Temperatura pós-recuperação;
D72: - Temperatura de Insuflação;
D73: - Temperatura de água fria ida;
D74: - Temperatura de água fria retorno;
D75: - Temperatura de água quente ida;
D76: - Temperatura de água quente retorno;
D77: - Pressão diferencial de Insuflação;
D78: - Caudal de Insuflação;
D79: - Pressão diferencial de Retorno;
D80: - Caudal de Retorno;
D81: - Falha de caudal;
D82: - Estado do filtro de Ar Novo;
D83: - Estado do filtro de Insuflação;
D84: - Estado do filtro de Retorno;
D85: - Estado do Fim de curso dos registos On-Off;
D86: - Estado de Avaria do Ventilador Insuflação;
D87: - Estado de Avaria do Ventilador Retorno;
B89: QGTC 4 | C89: AVAC 4 | D89: REC 12
B90: " | C90: " | D90: Arranque / Paragem automático | H90: 1 | V90: 1 | W90: YSLY-OZ 2x1
B91: " | C91: " | D91: Comutador Man-0-Automático | F91: 1 | O91: E | P91: A | S91: N
B92: " | C92: " | D92: Disparo de proteções | F92: 1 | O92: E | P92: A | S92: N
B93: " | C93: " | D93: Sinais via protocolo de comunicação | L93: 45 | M93: BACnet/IP | V93: 1 | W93: UTP Cat6
D94: REC 12
D95: - % Ventilador Insuflação;
D96: - % Ventilador Retorno;
D97: - % Registo Modulante;
D98: - % Eficiência da recuperação;
D99: - % Abertura da válvula frio;
D100: - % Abertura da válvula quente;
D101: - Estado dos Registos On-Off;
D102: - Ciclo de Funcionamento;
D103: - Ordem aos Ventiladores 1 (individual);
D104: - Ordem aos Ventiladores 2 (individual);
D105: - Temperatura Exterior;
D106: - Temperatura de Retorno;
D107: - Temperatura pós-recuperação;
D108: - Temperatura de Insuflação;
D109: - Temperatura de água fria ida;
D110: - Temperatura de água fria retorno;
D111: - Temperatura de água quente ida;
D112: - Temperatura de água quente retorno;
D113: - Pressão diferencial de Insuflação;
D114: - Caudal de Insuflação;
D115: - Pressão diferencial de Retorno;
D116: - Caudal de Retorno;
D117: - Falha de caudal;
D118: - Estado do filtro de Ar Novo;
D119: - Estado do filtro de Insuflação;
D120: - Estado do filtro de Retorno;
D121: - Estado do Fim de curso dos registos On-Off;
D122: - Estado de Avaria do Ventilador Insuflação;
D123: - Estado de Avaria do Ventilador Retorno;
B125: QGTC 4 | C125: AVAC 4 | D125: VEX 10
B126: " | C126: " | D126: Arranque / Paragem automático | H126: 1 | V126: 1 | W126: YSLY-OZ 2x1
B127: " | C127: " | D127: Comutador Man-0-Automático | F127: 1 | O127: E | P127: A | S127: N
B128: " | C128: " | D128: Estado funcionamento (pressostato) | F128: 1 | O128: F | P128: A | S128: N | T128: 1 | U128: DWG930.80 | V128: 1 | W128: YSLY-OZ 2x1
B129: " | C129: " | D129: Avaria | F129: 1 | O129: E | P129: E | S129: N
B131: QGTC 4 | C131: AVAC 4 | D131: VEX 12
B132: " | C132: " | D132: Arranque / Paragem automático | H132: 1 | V132: 1 | W132: YSLY-OZ 2x1
B133: " | C133: " | D133: Comutador Man-0-Automático | F133: 1 | O133: E | P133: A | S133: N
B134: " | C134: " | D134: Estado funcionamento (pressostato) | F134: 1 | O134: F | P134: A | S134: N | T134: 1 | U134: DWG930.80 | V134: 1 | W134: YSLY-OZ 2x1
B135: " | C135: " | D135: Avaria | F135: 1 | O135: E | P135: E | S135: N
B137: QGTC 4 | C137: AVAC 4 | D137: Central Registos Corta-Fogo
D138: Sinais via protocolo de comunicação | L138: 50 | M138: BACnet/IP | V138: 1 | W138: UTP cat6
D140: Contagem de energia térmica
B141: QGTC 4 | C141: AVAC 4 | D141: Contagem de energia térmica - AQ (Ala esquerda) | L141: 10 | M141: M-Bus | T141: 1 | U141: CET-AQ-DN100F | V141: 1 | W141: Datacel 2x2x0,5 | X141: 1
B142: " | C142: " | D142: Contagem de energia térmica - AF (Ala esquerda) | L142: 10 | M142: M-Bus | T142: 1 | U142: CET-AF-DN100F | V142: 1 | W142: Datacel 2x2x0,5 | X142: 1
B143: " | C143: " | D143: Contagem de energia térmica - AF (Ala central) | L143: 10 | M143: M-Bus | T143: 1 | U143: CET-AF-DN100F | V143: 1 | W143: Datacel 2x2x0,5 | X143: 1
B144: " | C144: " | D144: Contagem de energia térmica - AQ (Ala central) | L144: 10 | M144: M-Bus | T144: 1 | U144: CET-AQ-DN100F | V144: 1 | W144: Datacel 2x2x0,5 | X144: 1
D146: Instalações elétricas
B147: QGTC 4 | C147: QE | D147: (C0) QP-SC3 Piso 3
B148: " | C148: " | D148: Posição interruptor geral | F148: 1 | O148: E | P148: A | S148: N | V148: 1 | W148: YSLY-JZ 25G1
B149: " | C149: " | D149: Posição Disjuntores Quadros Parciais | F149: 15 | O149: E | P149: A | S149: N
B150: " | C150: " | D150: Disparo disjuntor alimentação - (C0) QP-SC3 | F150: 1 | O150: F | P150: A | S150: N
B151: " | C151: " | D151: Analisador de rede (C0) QP-SC3 | L151: 20 | M151: Modbus-Rtu | V151: 1 | W151: Datacel 2x2x0,5
B152: " | C152: " | D152: Integração iluminação DALI | L152: =6*128 -> 768 | M152: DALI | V152: 12 | W152: DALI 1x2x2
B153: " | C153: " | D153: Equipamentos KNX | L153: =64*6 -> 384 | M153: KNX | V153: 6 | W153: EIB 2x2x0,5
D156: Pontos Controlo | F156: =SUM(F5:F155) -> 32 | G156: 0 | H156: 5 | I156: 0 | J156: 0 | K156: 0 | L156: 1417
D157: Reserva (+10%) | F157: =CEILING(F156*0.1,1) -> 4 | G157: 0 | H157: 1 | I157: 0 | J157: 0 | K157: 0 | L157: 142
D158: TOTAL PONTOS CONTROLO | F158: =F156+F157 -> 36 | G158: 0 | H158: 6 | I158: 0 | J158: 0 | K158: 0 | L158: 1559

Sheet QGTC_5
F2: SISTEMA DE GESTÃO TÉCNICA CENTRALIZADA | T2: Equip.Campo | V2: Cabos | Y2: Obra: "PROJETO DE ARQUITETURA E ESPECIALIDADES DO TOPO NORTE DO ESTÁDIO MUNICIPAL DE LEIRIA PARA CENTRO DE NEGÓCIOS E CENTRO ASSOCIATIVO MUNICIPAL"
F3: LISTA DE PONTOS
F4: Tipo Sinal | O4: Informação / Comando | Y4: Rev.: 02 | Z4: Data: 2025/09/24
B5: Quadro | C5: Inst. | D5: Descrição | F5: ED | G5: Edi | H5: SD | I5: Eap | J5: Eaa | K5: SA | L5: Bus | M5: Protocolo | O5: Alarme | P5: Sinal | Q5: Reg | R5: Ind. | S5: Acum. | Y5: Observações
D7: QGTC_5
D10: Instalações mecânicas PISO 4
B12: QGTC 5 | C12: AVAC 5 | D12: QE.AVAC 5 | V12: 1 | W12: YSLY-JZ 16G1
B13: " | C13: " | D13: Posição interruptor geral | F13: 1 | O13: E | P13: A | S13: N
B14: " | C14: " | D14: Disparo agrupado int. diferenciais | F14: 1 | O14: E | P14: A | S14: N
B15: " | C15: " | D15: Actuação CDI | F15: 1 | O15: E | P15: A | S15: N
B16: " | C16: " | D16: Analisador de rede | L16: 20 | M16: Modbus-Rtu (RS485) | V16: 1 | W16: Datacel 2x2x0,5
B18: QGTC 5 | C18: AVAC 5 | D18: REC 13
B19: " | C19: " | D19: Arranque / Paragem automático | H19: 1 | V19: 1 | W19: YSLY-OZ 2x1
B20: " | C20: " | D20: Comutador Man-0-Automático | F20: 1 | O20: E | P20: A | S20: N
B21: " | C21: " | D21: Avaria | F21: 1 | O21: E | P21: A | S21: N
B22: " | C22: " | D22: Sinais via protocolo de comunicação | L22: 45 | M22: BACnet/IP | V22: 1 | W22: UTP Cat6
D23: REC 13
D24: - % Ventilador Insuflação;
D25: - % Ventilador Retorno;
D26: - % Registo Modulante;
D27: - % Eficiência da recuperação;
D28: - % Abertura da válvula frio;
D29: - % Abertura da válvula quente;
D30: - Estado dos Registos On-Off;
D31: - Ciclo de Funcionamento;
D32: - Ordem aos Ventiladores 1 (individual);
D33: - Ordem aos Ventiladores 2 (individual);
D34: - Temperatura Exterior;
D35: - Temperatura de Retorno;
D36: - Temperatura pós-recuperação;
D37: - Temperatura de Insuflação;
D38: - Temperatura de água fria ida;
D39: - Temperatura de água fria retorno;
D40: - Temperatura de água quente ida;
D41: - Temperatura de água quente retorno;
D42: - Pressão diferencial de Insuflação;
D43: - Caudal de Insuflação;
D44: - Pressão diferencial de Retorno;
D45: - Caudal de Retorno;
D46: - Falha de caudal;
D47: - Estado do filtro de Ar Novo;
D48: - Estado do filtro de Insuflação;
D49: - Estado do filtro de Retorno;
D50: - Estado do Fim de curso dos registos On-Off;
D51: - Estado de Avaria do Ventilador Insuflação;
D52: - Estado de Avaria do Ventilador Retorno;
B54: QGTC 5 | C54: AVAC 5 | D54: REC 14
B55: " | C55: " | D55: Arranque / Paragem automático | H55: 1 | V55: 1 | W55: YSLY-OZ 2x1
B56: " | C56: " | D56: Comutador Man-0-Automático | F56: 1 | O56: E | P56: A | S56: N
B57: " | C57: " | D57: Avaria | F57: 1 | O57: E | P57: A | S57: N
B58: " | C58: " | D58: Sinais via protocolo de comunicação | L58: 45 | M58: BACnet/IP | V58: 1 | W58: UTP Cat6
D59: REC 14
D60: - % Ventilador Insuflação;
D61: - % Ventilador Retorno;
D62: - % Registo Modulante;
D63: - % Eficiência da recuperação;
D64: - % Abertura da válvula frio;
D65: - % Abertura da válvula quente;
D66: - Estado dos Registos On-Off;
D67: - Ciclo de Funcionamento;
D68: - Ordem aos Ventiladores 1 (individual);
D69: - Ordem aos Ventiladores 2 (individual);
D70: - Temperatura Exterior;
D71: - Temperatura de Retorno;
D72: - Temperatura pós-recuperação;
D73: - Temperatura de Insuflação;
D74: - Temperatura de água fria ida;
D75: - Temperatura de água fria retorno;
D76: - Temperatura de água quente ida;
D77: - Temperatura de água quente retorno;
D78: - Pressão diferencial de Insuflação;
D79: - Caudal de Insuflação;
D80: - Pressão diferencial de Retorno;
D81: - Caudal de Retorno;
D82: - Falha de caudal;
D83: - Estado do filtro de Ar Novo;
D84: - Estado do filtro de Insuflação;
D85: - Estado do filtro de Retorno;
D86: - Estado do Fim de curso dos registos On-Off;
D87: - Estado de Avaria do Ventilador Insuflação;
D88: - Estado de Avaria do Ventilador Retorno;
B90: QGTC 5 | C90: AVAC 5 | D90: BC. AQS 1
B91: " | C91: " | D91: Arranque / Paragem automático | H91: 1 | V91: 1 | W91: YSLY-OZ 2x1
B92: " | C92: " | D92: Comutador Man-0-Automático | F92: 1 | O92: E | P92: A | S92: N
B93: " | C93: " | D93: Avaria | F93: 1 | O93: E | P93: A | S93: N
B94: " | C94: " | D94: Temperatura depósito - nível alto | I94: 1 | T94: 1 | U94: EGT348F102 | V94: 1 | W94: LIHCH 2x1
B95: " | C95: " | D95: Temperatura depósito - nível baixo | I95: 1 | T95: 1 | U95: EGT348F102 | V95: 1 | W95: LIHCH 2x1
B96: " | C96: " | D96: Resistência eléctrica - comando | H96: 1 | V96: 1 | W96: YSLY-OZ 2x1
B98: QGTC 5 | C98: AVAC 5 | D98: VEX 11
B99: " | C99: " | D99: Arranque / Paragem automático | H99: 1 | V99: 1 | W99: YSLY-OZ 2x1
B100: " | C100: " | D100: Comutador Man-0-Automático | F100: 1 | O100: E | P100: A | S100: N
B101: " | C101: " | D101: Estado funcionamento (pressostato) | F101: 1 | O101: F | P101: A | S101: N | T101: 1 | U101: DWG930.80 | V101: 1 | W101: YSLY-OZ 2x1
B102: " | C102: " | D102: Avaria | F102: 1 | O102: E | P102: E | S102: N
B104: QGTC 5 | C104: AVAC 5 | D104: Central Registos Corta-Fogo
D105: Sinais via protocolo de comunicação | L105: 50 | M105: Interface de comunicação (BACNET IP) | V105: 1 | W105: UTP cat6
D107: Contagem de energia térmica
B108: QGTC 5 | C108: AVAC 5 | D108: Contagem de energia térmica - AQ (Ala esquerda) | L108: 10 | M108: M-Bus | T108: 1 | U108: CET-AQ-DN100F | V108: 1 | W108: Datacel 2x2x0,5 | X108: 1
B109: " | C109: " | D109: Contagem de energia térmica - AF (Ala esquerda) | L109: 10 | M109: M-Bus | T109: 1 | U109: CET-AF-DN100F | V109: 1 | W109: Datacel 2x2x0,5 | X109: 1
D111: Contagem de energia térmica
B112: QGTC 5 | C112: AVAC 5 | D112: Contagem de energia térmica - AQ (Ala esquerda) | L112: 10 | M112: M-Bus | T112: 1 | U112: CET-AQ-DN80F | V112: 1 | W112: Datacel 2x2x0,5 | X112: 1
B113: " | C113: " | D113: Contagem de energia térmica - AF (Ala esquerda) | L113: 10 | M113: M-Bus | T113: 1 | U113: CET-AF-DN80F | V113: 1 | W113: Datacel 2x2x0,5 | X113: 1
B114: " | C114: " | D114: Contagem de energia térmica - AF (Ala central) | L114: 10 | M114: M-Bus | T114: 1 | U114: CET-AF-DN125F | V114: 1 | W114: Datacel 2x2x0,5 | X114: 1
B115: " | C115: " | D115: Contagem de energia térmica - AQ (Ala central) | L115: 10 | M115: M-Bus | T115: 1 | U115: CET-AQ-DN125F | V115: 1 | W115: Datacel 2x2x0,5 | X115: 1
B116: " | C116: " | D116: Contagem de energia térmica - AF (Ala direita) | L116: 10 | M116: M-Bus | T116: 1 | U116: CET-AF-DN100F | V116: 1 | W116: Datacel 2x2x0,5 | X116: 1
B117: " | C117: " | D117: Contagem de energia térmica - AQ (Ala direita) | L117: 10 | M117: M-Bus | T117: 1 | U117: CET-AQ-DN100F | V117: 1 | W117: Datacel 2x2x0,5 | X117: 1
D119: Instalações elétricas
B120: QGTC 5 | C120: QE | D120: (C0) QP-SC4 Piso 4
B121: " | C121: " | D121: Posição interruptor geral | F121: 1 | O121: E | P121: A | S121: N | V121: 1 | W121: YSLY-JZ 25G1
B122: " | C122: " | D122: Posição Disjuntores Quadros Parciais | F122: 15 | O122: E | P122: A | S122: N
B123: " | C123: " | D123: Disparo disjuntor alimentação - (C0) QP-SC4 | F123: 1 | O123: F | P123: A | S123: N
B124: " | C124: " | D124: Analisador de rede (C0) QP-SC4 | L124: 20 | M124: Modbus-Rtu | V124: 1 | W124: Datacel 2x2x0,5
B125: " | C125: " | D125: Integração iluminação DALI | L125: =5*128 -> 640 | M125: DALI | V125: 10 | W125: DALI 1x2x2
B126: " | C126: " | D126: Equipamentos KNX | L126: =64*5 -> 320 | M126: KNX | V126: 5 | W126: EIB 2x2x0,5
B128: QGTC 5 | C128: QE | D128: (C0) QP-SC5 Piso 5
B129: " | C129: " | D129: Posição interruptor geral | F129: 1 | O129: E | P129: A | S129: N | V129: 1 | W129: YSLY-JZ 25G1
B130: " | C130: " | D130: Posição Disjuntores Quadros Parciais | F130: 15 | O130: E | P130: A | S130: N
B131: " | C131: " | D131: Disparo disjuntor alimentação - (C0) QP-SC5 | F131: 1 | O131: F | P131: A | S131: N
B132: " | C132: " | D132: Analisador de rede (C0) QP-SC5 | L132: 20 | M132: Modbus-Rtu | V132: 1 | W132: Datacel 2x2x0,5
B133: " | C133: " | D133: Integração iluminação DALI | L133: =3*128 -> 384 | M133: DALI | V133: 6 | W133: DALI 1x2x2
B134: " | C134: " | D134: Equipamentos KNX | L134: =3*64 -> 192 | M134: KNX | V134: 3 | W134: EIB 2x2x0,5
D137: Pontos Controlo | F137: =SUM(F5:F136) -> 46 | G137: 0 | H137: 5 | I137: 2 | J137: 0 | K137: 0 | L137: 1816
D138: Reserva (+10%) | F138: =CEILING(F137*0.1,1) -> 5 | G138: 0 | H138: 1 | I138: 1 | J138: 0 | K138: 0 | L138: 182
D139: TOTAL PONTOS CONTROLO | F139: =F137+F138 -> 51 | G139: 0 | H139: 6 | I139: 3 | J139: 0 | K139: 0 | L139: 1998

Sheet QGTC_6
F2: SISTEMA DE GESTÃO TÉCNICA CENTRALIZADA | T2: Equip.Campo | V2: Cabos | Y2: Obra: "PROJETO DE ARQUITETURA E ESPECIALIDADES DO TOPO NORTE DO ESTÁDIO MUNICIPAL DE LEIRIA PARA CENTRO DE NEGÓCIOS E CENTRO ASSOCIATIVO MUNICIPAL"
F3: LISTA DE PONTOS
F4: Tipo Sinal | O4: Informação / Comando | Y4: Rev.: 02 | Z4: Data: 2025/09/24
B5: Quadro | C5: Inst. | D5: Descrição | F5: ED | G5: Edi | H5: SD | I5: Eap | J5: Eaa | K5: SA | L5: Bus | M5: Protocolo | O5: Alarme | P5: Sinal | Q5: Reg | R5: Ind. | S5: Acum. | Y5: Observações
D7: QGTC_6 | T7: QTD | U7: REF
D9: Instalações mecânicas PISO 6
B11: QGTC 6 | C11: AVAC 6 | D11: QE.AVAC 6 | V11: 4 | W11: YSLY-JZ 25G1
B12: " | C12: " | D12: Posição interruptor geral | F12: 1 | O12: E | P12: A | S12: N
B13: " | C13: " | D13: Disparo agrupado int. diferenciais | F13: 1 | O13: E | P13: A | S13: N
B14: " | C14: " | D14: Actuação CDI | F14: 1 | O14: E | P14: A | S14: N
B15: " | C15: " | D15: Analisador de rede | L15: 20 | M15: Modbus-Rtu (RS485) | V15: 1 | W15: Datacel 2x2x0,5
B16: " | C16: " | D16: Contagem de energia elétrica chiller 1 | L16: 10 | M16: Modbus-Rtu (RS485) | V16: 1 | W16: Datacel 2x2x0,5
B17: " | C17: " | D17: Contagem de energia elétrica chiller 2 | L17: 10 | M17: Modbus-Rtu (RS485) | V17: 1 | W17: Datacel 2x2x0,5
B18: " | C18: " | D18: Contagem de energia elétrica chiller 3 | L18: 10 | M18: Modbus-Rtu (RS485) | V18: 1 | W18: Datacel 2x2x0,5
B20: QGTC 6 | C20: AVAC 6 | D20: QE.Desenfumagem | V20: 1 | W20: YSLY-JZ 7G1
B21: " | C21: " | D21: Posição interruptor geral | F21: 1 | O21: E | P21: A | S21: N
B22: " | C22: " | D22: Disparo agrupado int. diferenciais | F22: 1 | O22: E | P22: A | S22: N
B23: " | C23: " | D23: Actuação CDI | F23: 1 | O23: E | P23: A | S23: N
B24: " | C24: " | D24: Analisador de rede | L24: 20 | M24: Modbus-Rtu (RS485) | V24: 1 | W24: Datacel 2x2x0,5
B26: QGTC 6 | C26: AVAC 6 | D26: Chiller 1 (4T) | X26: 1
B27: " | C27: " | D27: Arranque / Paragem automático | H27: 1 | V27: 1 | W27: YSLY-OZ 2x1
B28: " | C28: " | D28: Comutador Man-0-Automático | F28: 1 | O28: E | P28: A | S28: N
B29: " | C29: " | D29: Disparo protecções | F29: 1 | O29: E | P29: A | S29: N
B30: " | C30: " | D30: Presença de caudal (fluxostato - água fria) | F30: 1 | O30: F | P30: A | S30: N | T30: 1 | U30: SF1KF001 | V30: 1 | W30: YSLY-OZ 2x1
B31: " | C31: " | D31: Presença de caudal (fluxostato - água quente) | F31: 1 | O31: F | P31: A | S31: N | T31: 1 | U31: SF1KF001 | V31: 1 | W31: YSLY-OZ 2x1
B32: " | C32: " | D32: Temperatura circuito ida (água fria) | I32: 1 | Q32: ºC | R32: ºC | T32: 1 | U32: EGT346F102 | V32: 1 | W32: LIHCH 2x1
B33: " | C33: " | D33: Temperatura circuito retorno (água fria) | I33: 1 | Q33: ºC | R33: ºC | T33: 1 | U33: EGT346F102 | V33: 1 | W33: LIHCH 2x1
B34: " | C34: " | D34: Temperatura circuito ida (água quente) | I34: 1 | Q34: ºC | R34: ºC | T34: 1 | U34: EGT346F102 | V34: 1 | W34: LIHCH 2x1
B35: " | C35: " | D35: Temperatura circuito retorno (água quente) | I35: 1 | Q35: ºC | R35: ºC | T35: 1 | U35: EGT346F102 | V35: 1 | W35: LIHCH 2x1
B36: " | C36: " | D36: Contagem energia térmica - água quente | L36: 10 | M36: M-Bus | R36: Kw | T36: 1 | U36: CET-AQ-DN200F | V36: 1 | W36: Datacel 2x2x0,5 | Y36: Contador saída impulso ou integração
B37: " | C37: " | D37: Contagem energia térmica - água fria | L37: 10 | M37: M-Bus | R37: Kw | T37: 1 | U37: CET-AF-DN150F | V37: 1 | W37: Datacel 2x2x0,5 | Y37: Contador saída impulso ou integração
B38: " | C38: " | D38: Sinais via protocolo de comunicação | L38: =20*3 -> 60 | M38: Modbus-Rtu (RS485) | V38: 1 | W38: Datacel 2x2x0,5
B40: QGTC 6 | C40: AVAC 6 | D40: Chiller 2 (4T) | X40: 1
B41: " | C41: " | D41: Arranque / Paragem automático | H41: 1 | V41: 1 | W41: YSLY-OZ 2x1
B42: " | C42: " | D42: Comutador Man-0-Automático | F42: 1 | O42: E | P42: A | S42: N
B43: " | C43: " | D43: Disparo protecções | F43: 1 | O43: E | P43: A | S43: N
B44: " | C44: " | D44: Presença de caudal (fluxostato - água fria) | F44: 1 | O44: F | P44: A | S44: N | T44: 1 | U44: SF1KF001 | V44: 1 | W44: YSLY-OZ 2x1
B45: " | C45: " | D45: Presença de caudal (fluxostato - água quente) | F45: 1 | O45: F | P45: A | S45: N | T45: 1 | U45: SF1KF001 | V45: 1 | W45: YSLY-OZ 2x1
B46: " | C46: " | D46: Temperatura circuito ida (água fria) | I46: 1 | Q46: ºC | R46: ºC | T46: 1 | U46: EGT346F102 | V46: 1 | W46: LIHCH 2x1
B47: " | C47: " | D47: Temperatura circuito retorno (água fria) | I47: 1 | Q47: ºC | R47: ºC | T47: 1 | U47: EGT346F102 | V47: 1 | W47: LIHCH 2x1
B48: " | C48: " | D48: Temperatura circuito ida (água quente) | I48: 1 | Q48: ºC | R48: ºC | T48: 1 | U48: EGT346F102 | V48: 1 | W48: LIHCH 2x1
B49: " | C49: " | D49: Temperatura circuito retorno (água quente) | I49: 1 | Q49: ºC | R49: ºC | T49: 1 | U49: EGT346F102 | V49: 1 | W49: LIHCH 2x1
B50: " | C50: " | D50: Contagem energia térmica - água quente | L50: 10 | M50: M-Bus | R50: Kw | T50: 1 | U50: CET-AQ-DN200F | V50: 1 | W50: Datacel 2x2x0,5 | Y50: Contador saída impulso ou integração
B51: " | C51: " | D51: Contagem energia térmica - água fria | L51: 10 | M51: M-Bus | R51: Kw | T51: 1 | U51: CET-AF-DN150F | V51: 1 | W51: Datacel 2x2x0,5 | Y51: Contador saída impulso ou integração
B52: " | C52: " | D52: Sinais via protocolo de comunicação | L52: =20*3 -> 60 | M52: Modbus-Rtu (RS485) | V52: 1 | W52: Datacel 2x2x0,5
B54: QGTC 6 | C54: AVAC 6 | D54: Chiller 3 (4T) | X54: 1
B55: " | C55: " | D55: Arranque / Paragem automático | H55: 1 | V55: 1 | W55: YSLY-OZ 2x1
B56: " | C56: " | D56: Comutador Man-0-Automático | F56: 1 | O56: E | P56: A | S56: N
B57: " | C57: " | D57: Disparo protecções | F57: 1 | O57: E | P57: A | S57: N
B58: " | C58: " | D58: Presença de caudal (fluxostato - água fria) | F58: 1 | O58: F | P58: A | S58: N | T58: 1 | U58: SF1KF001 | V58: 1 | W58: YSLY-OZ 2x1
B59: " | C59: " | D59: Presença de caudal (fluxostato - água quente) | F59: 1 | O59: F | P59: A | S59: N | T59: 1 | U59: SF1KF001 | V59: 1 | W59: YSLY-OZ 2x1
B60: " | C60: " | D60: Temperatura circuito ida (água fria) | I60: 1 | Q60: ºC | R60: ºC | T60: 1 | U60: EGT346F102 | V60: 1 | W60: LIHCH 2x1
B61: " | C61: " | D61: Temperatura circuito retorno (água fria) | I61: 1 | Q61: ºC | R61: ºC | T61: 1 | U61: EGT346F102 | V61: 1 | W61: LIHCH 2x1
B62: " | C62: " | D62: Temperatura circuito ida (água quente) | I62: 1 | Q62: ºC | R62: ºC | T62: 1 | U62: EGT346F102 | V62: 1 | W62: LIHCH 2x1
B63: " | C63: " | D63: Temperatura circuito retorno (água quente) | I63: 1 | Q63: ºC | R63: ºC | T63: 1 | U63: EGT346F102 | V63: 1 | W63: LIHCH 2x1
B64: " | C64: " | D64: Contagem energia térmica - água quente | L64: 10 | M64: M-Bus | R64: Kw | T64: 1 | U64: CET-AQ-DN100F | V64: 1 | W64: Datacel 2x2x0,5 | Y64: Contador saída impulso ou integração
B65: " | C65: " | D65: Contagem energia térmica - água fria | L65: 10 | M65: M-Bus | R65: Kw | T65: 1 | U65: CET-AF-DN100F | V65: 1 | W65: Datacel 2x2x0,5 | Y65: Contador saída impulso ou integração
B66: " | C66: " | D66: Sinais via protocolo de comunicação | L66: =20*3 -> 60 | M66: Modbus-Rtu (RS485) | V66: 1 | W66: Datacel 2x2x0,5
B68: QGTC 6 | C68: AVAC 6 | D68: BC-CH1.1 (água quente)
B69: " | C69: " | D69: Arranque / Paragem automático | H69: 1 | V69: 1 | W69: YSLY-OZ 2x1
B70: " | C70: " | D70: Comutador Man-0-Automático | F70: 1 | O70: E | P70: A | S70: N
B71: " | C71: " | D71: Disparo térmico | F71: 1 | O71: E | P71: A | S71: N
B72: " | C72: " | D72: Variador frequência - Comando 0..10Vdc | K72: 1 | P72: L/D | S72: H | U72: Variador excluído | V72: 1 | W72: LIHCH 5G1
B73: " | C73: " | D73: Variador frequência - Alarme/avaria | F73: 1 | O73: E | P73: A | S73: N
B74: " | C74: " | D74: Variador frequência - Feedback 0..10Vdc | J74: 1
B75: " | C75: " | D75: Pressão diferencial de água | J75: 1 | Q75: Kpa | R75: Kpa | T75: 1 | U75: DSDU106F021 | V75: 1 | W75: LIHCH 3G1 | Y75: Definir gama medida
B76: " | C76: " | D76: Filtro de água colmatado | F76: 1 | O76: F | P76: A | S76: N | T76: 1 | U76: DSD137F002 | V76: 1 | W76: YSLY-OZ 2x1
B77: " | C77: " | D77: Sinais via protocolo de comunicação | L77: 10 | M77: Modbus-Rtu (RS485) | V77: 1 | W77: Datacel 2x2x0,5
B79: QGTC 6 | C79: AVAC 6 | D79: BC-CH1.2 (água fria)
B80: " | C80: " | D80: Arranque / Paragem automático | H80: 1 | V80: 1 | W80: YSLY-OZ 2x1
B81: " | C81: " | D81: Comutador Man-0-Automático | F81: 1 | O81: E | P81: A | S81: N
B82: " | C82: " | D82: Disparo térmico | F82: 1 | O82: E | P82: A | S82: N
B83: " | C83: " | D83: Variador frequência - Comando 0..10Vdc | K83: 1 | P83: L/D | S83: H | U83: Variador excluído | V83: 1 | W83: LIHCH 5G1
B84: " | C84: " | D84: Variador frequência - Alarme/avaria | F84: 1 | O84: E | P84: A | S84: N
B85: " | C85: " | D85: Variador frequência - Feedback 0..10Vdc | J85: 1
B86: " | C86: " | D86: Pressão diferencial de água | J86: 1 | Q86: Kpa | R86: Kpa | T86: 1 | U86: DSDU106F021 | V86: 1 | W86: LIHCH 3G1 | Y86: Definir gama medida
B87: " | C87: " | D87: Filtro de água colmatado | F87: 1 | O87: F | P87: A | S87: N | T87: 1 | U87: DSD137F002 | V87: 1 | W87: YSLY-OZ 2x1
B88: " | C88: " | D88: Sinais via protocolo de comunicação | L88: 10 | M88: Modbus-Rtu (RS485) | V88: 1 | W88: Datacel 2x2x0,5
B90: QGTC 6 | C90: AVAC 6 | D90: BC-CH2.1 (água quente)
B91: " | C91: " | D91: Arranque / Paragem automático | H91: 1 | V91: 1 | W91: YSLY-OZ 2x1
B92: " | C92: " | D92: Comutador Man-0-Automático | F92: 1 | O92: E | P92: A | S92: N
B93: " | C93: " | D93: Disparo térmico | F93: 1 | O93: E | P93: A | S93: N
B94: " | C94: " | D94: Variador frequência - Comando 0..10Vdc | K94: 1 | P94: L/D | S94: H | U94: Variador excluído | V94: 1 | W94: LIHCH 5G1
B95: " | C95: " | D95: Variador frequência - Alarme/avaria | F95: 1 | O95: E | P95: A | S95: N
B96: " | C96: " | D96: Variador frequência - Feedback 0..10Vdc | J96: 1
B97: " | C97: " | D97: Pressão diferencial de água | J97: 1 | Q97: Kpa | R97: Kpa | T97: 1 | U97: DSDU106F021 | V97: 1 | W97: LIHCH 3G1 | Y97: Definir gama medida
B98: " | C98: " | D98: Filtro de água colmatado | F98: 1 | O98: F | P98: A | S98: N | T98: 1 | U98: DSD137F002 | V98: 1 | W98: YSLY-OZ 2x1
B99: " | C99: " | D99: Sinais via protocolo de comunicação | L99: 10 | M99: Modbus-Rtu (RS485) | V99: 1 | W99: Datacel 2x2x0,5
B101: QGTC 6 | C101: AVAC 6 | D101: BC-CH2.2 (água fria)
B102: " | C102: " | D102: Arranque / Paragem automático | H102: 1 | V102: 1 | W102: YSLY-OZ 2x1
B103: " | C103: " | D103: Comutador Man-0-Automático | F103: 1 | O103: E | P103: A | S103: N
B104: " | C104: " | D104: Disparo térmico | F104: 1 | O104: E | P104: A | S104: N
B105: " | C105: " | D105: Variador frequência - Comando 0..10Vdc | K105: 1 | P105: L/D | S105: H | U105: Variador excluído | V105: 1 | W105: LIHCH 5G1
B106: " | C106: " | D106: Variador frequência - Alarme/avaria | F106: 1 | O106: E | P106: A | S106: N
B107: " | C107: " | D107: Variador frequência - Feedback 0..10Vdc | J107: 1
B108: " | C108: " | D108: Pressão diferencial de água | J108: 1 | Q108: Kpa | R108: Kpa | T108: 1 | U108: DSDU16F021 | V108: 1 | W108: LIHCH 3G1 | Y108: Definir gama medida
B109: " | C109: " | D109: Filtro de água colmatado | F109: 1 | O109: F | P109: A | S109: N | T109: 1 | U109: DSD137F002 | V109: 1 | W109: YSLY-OZ 2x1
B110: " | C110: " | D110: Sinais via protocolo de comunicação | L110: 10 | M110: Modbus-Rtu (RS485) | V110: 1 | W110: Datacel 2x2x0,5
B112: QGTC 6 | C112: AVAC 6 | D112: BC-CH3.1 (água quente)
B113: " | C113: " | D113: Arranque / Paragem automático | H113: 1 | V113: 1 | W113: YSLY-OZ 2x1
B114: " | C114: " | D114: Comutador Man-0-Automático | F114: 1 | O114: E | P114: A | S114: N
B115: " | C115: " | D115: Disparo térmico | F115: 1 | O115: E | P115: A | S115: N
B116: " | C116: " | D116: Variador frequência - Comando 0..10Vdc | K116: 1 | P116: L/D | S116: H | U116: Variador excluído | V116: 1 | W116: LIHCH 5G1
B117: " | C117: " | D117: Variador frequência - Alarme/avaria | F117: 1 | O117: E | P117: A | S117: N
B118: " | C118: " | D118: Variador frequência - Feedback 0..10Vdc | J118: 1
B119: " | C119: " | D119: Pressão diferencial de água | J119: 1 | Q119: Kpa | R119: Kpa | T119: 1 | U119: DSDU16F021 | V119: 1 | W119: LIHCH 3G1 | Y119: Definir gama medida
B120: " | C120: " | D120: Filtro de água colmatado | F120: 1 | O120: F | P120: A | S120: N | T120: 1 | U120: DSD137F002 | V120: 1 | W120: YSLY-OZ 2x1
B121: " | C121: " | D121: Sinais via protocolo de comunicação | L121: 10 | M121: Modbus-Rtu (RS485) | V121: 1 | W121: Datacel 2x2x0,5
B123: QGTC 6 | C123: AVAC 6 | D123: BC-CH3.2 (água fria)
B124: " | C124: " | D124: Arranque / Paragem automático | H124: 1 | V124: 1 | W124: YSLY-OZ 2x1
B125: " | C125: " | D125: Comutador Man-0-Automático | F125: 1 | O125: E | P125: A | S125: N
B126: " | C126: " | D126: Disparo térmico | F126: 1 | O126: E | P126: A | S126: N
B127: " | C127: " | D127: Variador frequência - Comando 0..10Vdc | K127: 1 | P127: L/D | S127: H | U127: Variador excluído | V127: 1 | W127: LIHCH 5G1
B128: " | C128: " | D128: Variador frequência - Alarme/avaria | F128: 1 | O128: E | P128: A | S128: N
B129: " | C129: " | D129: Variador frequência - Feedback 0..10Vdc | J129: 1
B130: " | C130: " | D130: Pressão diferencial de água | J130: 1 | Q130: Kpa | R130: Kpa | T130: 1 | U130: DSDU16F021 | V130: 1 | W130: LIHCH 3G1 | Y130: Definir gama medida
B131: " | C131: " | D131: Filtro de água colmatado | F131: 1 | O131: F | P131: A | S131: N | T131: 1 | U131: DSD137F002 | V131: 1 | W131: YSLY-OZ 2x1
B132: " | C132: " | D132: Sinais via protocolo de comunicação | L132: 10 | M132: Modbus-Rtu (RS485) | V132: 1 | W132: Datacel 2x2x0,5
B134: QGTC 6 | C134: AVAC 6 | D134: Coletor Ida/Retorno (C1 - água fria)
B135: " | C135: " | D135: Temperatura colector ida | I135: 1 | Q135: ºC | R135: ºC | T135: 1 | U135: EGT347F102 | V135: 1 | W135: LIHCH 2x1
B136: " | C136: " | D136: Temperatura colector retorno | I136: 1 | Q136: ºC | R136: ºC | T136: 1 | U136: EGT347F102 | V136: 1 | W136: LIHCH 2x1
B138: QGTC 6 | C138: AVAC 6 | D138: Coletor Ida/Retorno (C1 - água quente)
B139: " | C139: " | D139: Temperatura colector ida | I139: 1 | Q139: ºC | R139: ºC | T139: 1 | U139: EGT347F102 | V139: 1 | W139: LIHCH 2x1
B140: " | C140: " | D140: Temperatura colector retorno | I140: 1 | Q140: ºC | R140: ºC | T140: 1 | U140: EGT347F102 | V140: 1 | W140: LIHCH 2x1
B142: QGTC 6 | C142: AVAC 6 | D142: Coletor Ida/Retorno (C2 - água quente)
B143: " | C143: " | D143: Temperatura colector ida | I143: 1 | Q143: ºC | R143: ºC | T143: 1 | U143: EGT347F102 | V143: 1 | W143: LIHCH 2x1
B144: " | C144: " | D144: Temperatura colector retorno | I144: 1 | Q144: ºC | R144: ºC | T144: 1 | U144: EGT347F102 | V144: 1 | W144: LIHCH 2x1
B146: QGTC 6 | C146: AVAC 6 | D146: Coletor Ida/Retorno (C2 - água fria)
B147: " | C147: " | D147: Temperatura colector ida | I147: 1 | Q147: ºC | R147: ºC | T147: 1 | U147: EGT347F102 | V147: 1 | W147: LIHCH 2x1
B148: " | C148: " | D148: Temperatura colector retorno | I148: 1 | Q148: ºC | R148: ºC | T148: 1 | U148: EGT347F102 | V148: 1 | W148: LIHCH 2x1
B150: QGTC 6 | C150: AVAC 6 | D150: D. Inércia Aquecimento
B151: " | C151: " | D151: Temperatura depósito | I151: 1 | Q151: ºC | R151: ºC | T151: 1 | U151: EGT348F102 | V151: 1 | W151: LIHCH 2x1
B152: " | C152: "
B153: QGTC 6 | C153: AVAC 6 | D153: D. Inércia Arrefecimento
B154: " | C154: " | D154: Temperatura depósito | I154: 1 | Q154: ºC | R154: ºC | T154: 1 | U154: EGT348F102 | V154: 1 | W154: LIHCH 2x1
B156: QGTC 6 | C156: AVAC 6 | D156: BCF Cent.1
B157: " | C157: " | D157: Arranque / Paragem automático | H157: 1 | V157: 1 | W157: YSLY-OZ 2x1
B158: " | C158: " | D158: Comutador Man-0-Automático | F158: 1 | O158: E | P158: A | S158: N
B159: " | C159: " | D159: Disparo térmico | F159: 1 | O159: E | P159: A | S159: N
B160: " | C160: " | D160: Variador frequência - Comando 0..10Vdc | K160: 1 | P160: L/D | S160: H | U160: Variador excluído | V160: 1 | W160: LIHCH 5G1
B161: " | C161: " | D161: Variador frequência - Alarme/avaria | F161: 1 | O161: E | P161: A | S161: N
B162: " | C162: " | D162: Variador frequência - Feedback 0..10Vdc | J162: 1
B163: " | C163: " | D163: Pressão diferencial de água | J163: 1 | Q163: Kpa | R163: Kpa | T163: 1 | U163: DSDU16F021 | V163: 1 | W163: LIHCH 3G1 | Y163: Definir gama medida
B164: " | C164: " | D164: Filtro de água colmatado | F164: 1 | O164: F | P164: A | S164: N | T164: 1 | U164: DSD137F002 | V164: 1 | W164: YSLY-OZ 2x1
B165: " | C165: " | D165: Temperatura circuito ida (água fria) | I165: 1 | Q165: ºC | R165: ºC | T165: 1 | U165: EGT346F102 | V165: 1 | W165: LIHCH 2x1
B166: " | C166: " | D166: Temperatura circuito retorno (água fria) | I166: 1 | Q166: ºC | R166: ºC | T166: 1 | U166: EGT346F102 | V166: 1 | W166: LIHCH 2x1
B167: " | C167: " | D167: Sinais via protocolo de comunicação | L167: 10 | M167: Modbus-Rtu (RS485) | V167: 1 | W167: Belden 9842
B169: QGTC 6 | C169: AVAC 6 | D169: BCF Cent.2
B170: " | C170: " | D170: Arranque / Paragem automático | H170: 1 | V170: 1 | W170: YSLY-OZ 2x1
B171: " | C171: " | D171: Comutador Man-0-Automático | F171: 1 | O171: E | P171: A | S171: N
B172: " | C172: " | D172: Disparo térmico | F172: 1 | O172: E | P172: A | S172: N
B173: " | C173: " | D173: Variador frequência - Comando 0..10Vdc | K173: 1 | P173: L/D | S173: H | U173: Variador excluído | V173: 1 | W173: LIHCH 5G1
B174: " | C174: " | D174: Variador frequência - Alarme/avaria | F174: 1 | O174: E | P174: A | S174: N
B175: " | C175: " | D175: Variador frequência - Feedback 0..10Vdc | J175: 1
B176: " | C176: " | D176: Pressão diferencial de água | J176: 1 | Q176: Kpa | R176: Kpa | T176: 1 | U176: DSDU16F021 | V176: 1 | W176: LIHCH 3G1 | Y176: Definir gama medida
B177: " | C177: " | D177: Filtro de água colmatado | F177: 1 | O177: F | P177: A | S177: N | T177: 1 | U177: DSD137F002 | V177: 1 | W177: YSLY-OZ 2x1
B178: " | C178: " | D178: Temperatura circuito (água fria) | I178: 1 | Q178: ºC | R178: ºC | T178: 1 | U178: EGT346F102 | V178: 1 | W178: LIHCH 2x1
B179: " | C179: " | D179: Temperatura circuito retorno (água fria) | I179: 1 | Q179: ºC | R179: ºC | T179: 1 | U179: EGT346F102 | V179: 1 | W179: LIHCH 2x1
B180: " | C180: " | D180: Sinais via protocolo de comunicação | L180: 10 | M180: Modbus-Rtu (RS485) | V180: 1 | W180: Belden 9842
B182: QGTC 6 | C182: AVAC 6 | D182: BCF Dir.
B183: " | C183: " | D183: Arranque / Paragem automático | H183: 1 | V183: 1 | W183: YSLY-OZ 2x1
B184: " | C184: " | D184: Comutador Man-0-Automático | F184: 1 | O184: E | P184: A | S184: N
B185: " | C185: " | D185: Disparo térmico | F185: 1 | O185: E | P185: A | S185: N
B186: " | C186: " | D186: Variador frequência - Comando 0..10Vdc | K186: 1 | P186: L/D | S186: H | U186: Variador excluído | V186: 1 | W186: LIHCH 5G1
B187: " | C187: " | D187: Variador frequência - Alarme/avaria | F187: 1 | O187: E | P187: A | S187: N
B188: " | C188: " | D188: Variador frequência - Feedback 0..10Vdc | J188: 1
B189: " | C189: " | D189: Pressão diferencial de água | J189: 1 | Q189: Kpa | R189: Kpa | T189: 1 | U189: DSDU16F021 | V189: 1 | W189: LIHCH 3G1 | Y189: Definir gama medida
B190: " | C190: " | D190: Filtro de água colmatado | F190: 1 | O190: F | P190: A | S190: N | T190: 1 | U190: DSD137F002 | V190: 1 | W190: YSLY-OZ 2x1
B191: " | C191: " | D191: Temperatura circuito (água fria) | I191: 1 | Q191: ºC | R191: ºC | T191: 1 | U191: EGT346F102 | V191: 1 | W191: LIHCH 2x1
B192: " | C192: " | D192: Temperatura circuito retorno (água fria) | I192: 1 | Q192: ºC | R192: ºC | T192: 1 | U192: EGT346F102 | V192: 1 | W192: LIHCH 2x1
B193: " | C193: " | D193: Sinais via protocolo de comunicação | L193: 10 | M193: Modbus-Rtu (RS485) | V193: 1 | W193: Belden 9842
B195: QGTC 6 | C195: AVAC 6 | D195: BCF Esq.1
B196: " | C196: " | D196: Arranque / Paragem automático | H196: 1 | V196: 1 | W196: YSLY-OZ 2x1
B197: " | C197: " | D197: Comutador Man-0-Automático | F197: 1 | O197: E | P197: A | S197: N
B198: " | C198: " | D198: Disparo térmico | F198: 1 | O198: E | P198: A | S198: N
B199: " | C199: " | D199: Variador frequência - Comando 0..10Vdc | K199: 1 | P199: L/D | S199: H | U199: Variador excluído | V199: 1 | W199: LIHCH 5G1
B200: " | C200: " | D200: Variador frequência - Alarme/avaria | F200: 1 | O200: E | P200: A | S200: N
B201: " | C201: " | D201: Variador frequência - Feedback 0..10Vdc | J201: 1
B202: " | C202: " | D202: Pressão diferencial de água | J202: 1 | Q202: Kpa | R202: Kpa | T202: 1 | U202: DSDU16F021 | V202: 1 | W202: LIHCH 3G1 | Y202: Definir gama medida
B203: " | C203: " | D203: Filtro de água colmatado | F203: 1 | O203: F | P203: A | S203: N | T203: 1 | U203: DSD137F002 | V203: 1 | W203: YSLY-OZ 2x1
B204: " | C204: " | D204: Temperatura circuito (água fria) | I204: 1 | Q204: ºC | R204: ºC | T204: 1 | U204: EGT346F102 | V204: 1 | W204: LIHCH 2x1
B205: " | C205: " | D205: Temperatura circuito retorno (água fria) | I205: 1 | Q205: ºC | R205: ºC | T205: 1 | U205: EGT346F102 | V205: 1 | W205: LIHCH 2x1
B206: " | C206: " | D206: Sinais via protocolo de comunicação | L206: 10 | M206: Modbus-Rtu (RS485) | V206: 1 | W206: Belden 9842
B208: QGTC 6 | C208: AVAC 6 | D208: BCF Esq.2
B209: " | C209: " | D209: Arranque / Paragem automático | H209: 1 | V209: 1 | W209: YSLY-OZ 2x1
B210: " | C210: " | D210: Comutador Man-0-Automático | F210: 1 | O210: E | P210: A | S210: N
B211: " | C211: " | D211: Disparo térmico | F211: 1 | O211: E | P211: A | S211: N
B212: " | C212: " | D212: Variador frequência - Comando 0..10Vdc | K212: 1 | P212: L/D | S212: H | U212: Variador excluído | V212: 1 | W212: LIHCH 5G1
B213: " | C213: " | D213: Variador frequência - Alarme/avaria | F213: 1 | O213: E | P213: A | S213: N
B214: " | C214: " | D214: Variador frequência - Feedback 0..10Vdc | J214: 1
B215: " | C215: " | D215: Pressão diferencial de água | J215: 1 | Q215: Kpa | R215: Kpa | T215: 1 | U215: DSDU16F021 | V215: 1 | W215: LIHCH 3G1 | Y215: Definir gama medida
B216: " | C216: " | D216: Filtro de água colmatado | F216: 1 | O216: F | P216: A | S216: N | T216: 1 | U216: DSD137F002 | V216: 1 | W216: YSLY-OZ 2x1
B217: " | C217: " | D217: Temperatura circuito (água fria) | I217: 1 | Q217: ºC | R217: ºC | T217: 1 | U217: EGT346F102 | V217: 1 | W217: LIHCH 2x1
B218: " | C218: " | D218: Temperatura circuito retorno (água fria) | I218: 1 | Q218: ºC | R218: ºC | T218: 1 | U218: EGT346F102 | V218: 1 | W218: LIHCH 2x1
B219: " | C219: " | D219: Sinais via protocolo de comunicação | L219: 10 | M219: Modbus-Rtu (RS485) | V219: 1 | W219: Belden 9842
B221: QGTC 6 | C221: AVAC 6 | D221: BCQ Cent.1
B222: " | C222: " | D222: Arranque / Paragem automático | H222: 1 | V222: 1 | W222: YSLY-OZ 2x1
B223: " | C223: " | D223: Comutador Man-0-Automático | F223: 1 | O223: E | P223: A | S223: N
B224: " | C224: " | D224: Disparo térmico | F224: 1 | O224: E | P224: A | S224: N
B225: " | C225: " | D225: Variador frequência - Comando 0..10Vdc | K225: 1 | P225: L/D | S225: H | U225: Variador excluído | V225: 1 | W225: LIHCH 5G1
... 414 more rows
